bitfinex/quotes_SOLUSD_20260113
["timestamp","ask_amount","ask_price","bid_price","bid_amount"]
[1768292173560,0.77347253,140.49,140.46,3.25092831]
[1768292174139,0.77347253,140.49,140.46,0.72087004]
[1768292174342,0.77347253,140.49,140.46,3.97179835]
[1768292176074,0.1,140.49,140.46,11.09125269]
[1768292178265,0.1,140.49,140.46,3.97179835]
[1768292178564,0.65689558,140.47,140.44,16.9544476]
[1768292178742,0.65689558,140.47,140.44,24.07490856]
[1768292181259,0.65689558,140.48,140.44,24.07490856]
[1768292181442,0.65689558,140.48,140.45,9.9006962]
[1768292181843,0.65689558,140.48,140.45,7.82334023]
[1768292182063,0.65689558,140.48,140.45,9.9006962]
[1768292183759,0.65689558,140.48,140.45,9.19717691]
[1768292183960,0.65689558,140.48,140.46,2.07735597]
[1768292184168,0.1,140.49,140.47,2.78087526]
[1768292184347,0.1,140.49,140.48,2.07735597]
[1768292184542,0.1,140.49,140.47,2.78087526]
[1768292185651,0.1,140.49,140.47,15.78087526]
[1768292186551,0.1,140.49,140.47,22.89973335]
[1768292187466,0.1,140.49,140.48,2.07735597]
[1768292187964,0.1,140.5,140.48,2.78087526]
[1768292188353,0.1,140.5,140.48,9.89925374]
[1768292188548,0.1,140.51,140.49,2.75070701]
[1768292188754,0.75689558,140.53,140.5,15.07735597]
[1768292190868,0.75689558,140.53,140.5,13.0]
[1768292193552,0.75689558,140.53,140.5,13.57335104]
[1768292194363,0.75689558,140.53,140.49,9.19517902]
[1768292194573,0.65689558,140.52,140.5,13.0]
[1768292195068,0.65689558,140.52,140.48,15.78266234]
[1768292195574,0.71493739,140.51,140.48,13.0]
[1768292195759,0.71493739,140.51,140.48,13.70530637]
[1768292195964,0.71493739,140.51,140.48,2.78266234]
[1768292200170,0.71493739,140.51,140.48,0.70530637]
[1768292200876,0.71493739,140.51,140.47,15.78266234]
[1768292201375,0.71493739,140.51,140.45,13.70530637]
[1768292201376,2.79229336,140.49,140.45,13.70530637]
[1768292201558,0.71493739,140.48,140.45,13.70530637]
[1768292202180,0.71493739,140.49,140.45,22.9025262]
[1768292202675,2.79229336,140.51,140.47,0.70530637]
[1768292202851,0.71493739,140.5,140.47,0.70530637]
[1768292203052,9.90889421,140.52,140.47,2.78266234]
[1768292203280,0.71493739,140.51,140.47,2.78266234]
[1768292206076,0.71493739,140.51,140.47,9.19616021]
[1768292206266,1e-08,140.53,140.51,0.70530637]
[1768292206467,0.1,140.64,140.53,0.70530637]
[1768292206672,2.07735597,140.62,140.57,0.70530637]
[1768292206979,9.18887459,140.62,140.57,2.78266234]
[1768292207180,7.21081798,140.64,140.57,0.70530637]
[1768292207485,2.07735597,140.62,140.57,0.70530637]
[1768292207784,2.07735597,140.62,140.57,2.78266234]
[1768292208356,2.78783455,140.6,140.56,13.70530637]
[1768292209265,9.90022839,140.6,140.56,13.70530637]
[1768292211986,7.82287242,140.6,140.56,13.70530637]
[1768292212189,9.90022839,140.6,140.56,13.70530637]
[1768292213370,9.90022839,140.6,140.56,15.78266234]
[1768292213572,9.90022839,140.6,140.56,2.78266234]
[1768292213872,0.7061085,140.58,140.54,15.07735597]
[1768292214102,2.78346447,140.58,140.54,13.70530637]
[1768292214275,0.7061085,140.58,140.54,15.78266234]
[1768292215486,0.71493739,140.59,140.55,2.78266234]
[1768292215883,0.71493739,140.59,140.54,20.11533708]
[1768292215884,0.71493739,140.59,140.56,2.78266234]
[1768292216190,7.82733123,140.6,140.56,2.78266234]
[1768292217200,0.26905643,140.59,140.56,2.07735597]
[1768292217565,0.26905643,140.59,140.56,2.78266234]
[1768292217992,7.82733123,140.6,140.56,2.78266234]
[1768292218979,0.71493739,140.6,140.56,2.78266234]
[1768292220192,7.82736842,140.6,140.56,0.70530637]
[1768292220382,7.82736842,140.6,140.56,2.78266234]
[1768292221682,9.90472439,140.6,140.56,0.70530637]
[1768292222079,0.26905643,140.59,140.55,2.07735597]
[1768292222284,0.26905643,140.59,140.55,0.70530637]
[1768292222285,0.71047858,140.58,140.55,0.70530637]
[1768292222606,2.78346447,140.56,140.52,0.70530637]
[1768292223402,0.27779703,140.55,140.51,2.78266234]
[1768292224398,2.35939328,140.53,140.47,0.70530637]
[1768292224700,2.35939328,140.53,140.48,2.74015779]
[1768292225005,2.32939328,140.53,140.48,2.74015779]
[1768292225191,2.32939328,140.53,140.49,0.66280182]
[1768292225504,9.44552979,140.53,140.49,0.66280182]
[1768292227083,2.07735597,140.52,140.49,0.66280182]
[1768292227390,9.44552979,140.53,140.49,0.66280182]
[1768292232812,2.07735597,140.52,140.49,0.66280182]
[1768292232989,2.07735597,140.51,140.48,0.66280182]
[1768292235008,2.33854789,140.51,140.48,0.66280182]
[1768292235195,2.07735597,140.52,140.48,7.78117336]
[1768292235379,9.85028991,140.53,140.49,0.65963723]
[1768292237211,2.73419826,140.54,140.5,0.65963723]
[1768292238014,2.07735597,140.53,140.5,0.65963723]
[1768292239397,7.77253397,140.54,140.5,0.65963723]
[1768292239599,2.07735597,140.53,140.5,0.65963723]
[1768292240113,2.37422655,140.53,140.5,0.65963723]
[1768292241310,3.54103389,140.53,140.5,0.65963723]
[1768292243909,0.65324258,140.52,140.49,0.65963723]
[1768292244210,0.65324258,140.52,140.48,11.02210549]
[1768292244409,0.65684229,140.53,140.49,3.90380054]
[1768292245006,0.65684229,140.54,140.51,3.90380054]
[1768292245321,0.65684229,140.54,140.52,3.24416331]
[1768292245616,0.65684229,140.55,140.52,3.24416331]
[1768292246412,0.65684229,140.56,140.52,3.90380054]
[1768292246589,3.9010056,140.56,140.52,0.65963723]
[1768292248421,0.29687058,140.55,140.52,10.36051178]
[1768292249215,0.65684229,140.56,140.53,0.65963723]
[1768292249398,0.65684229,140.56,140.52,11.02014901]
[1768292251415,0.65684229,140.56,140.53,0.65963723]
[1768292251607,11.01434399,140.59,140.55,0.65963723]
[1768292251813,0.29687058,140.58,140.54,3.24416331]
[1768292252920,0.29687058,140.58,140.54,3.90380054]
[1768292253898,3.54103389,140.58,140.54,3.90380054]
[1768292254622,10.3575017,140.59,140.55,0.65963723]
[1768292254799,0.65684229,140.6,140.56,3.92968693]
[1768292255199,7.77748805,140.62,140.58,0.68552362]
[1768292255507,3.24416331,140.61,140.58,0.68552362]
[1768292255907,3.24416331,140.61,140.58,0.62552362]
[1768292256219,7.77748805,140.62,140.58,0.62552362]
[1768292256417,11.02165136,140.62,140.58,0.62552362]
[1768292256618,0.34720624,140.61,140.57,10.35786105]
[1768292256925,0.66281027,140.6,140.56,10.35841115]
[1768292257616,0.66281027,140.6,140.57,3.24416331]
[1768292257917,0.66281027,140.6,140.56,3.24416331]
[1768292258122,0.35036228,140.59,140.56,16.24416331]
[1768292258312,3.24416331,140.6,140.57,0.68552362]
[1768292259321,7.77804364,140.61,140.57,3.92968693]
[1768292259525,3.9101615,140.61,140.57,11.04353507]
[1768292260113,0.66599819,140.61,140.57,11.04353507]
[1768292260523,0.66599819,140.61,140.57,3.92968693]
[1768292260725,0.34720624,140.6,140.56,3.24416331]
[1768292260906,10.35618879,140.61,140.57,0.68552362]
[1768292261107,11.02218698,140.61,140.57,3.92968693]
[1768292261409,3.9101615,140.61,140.57,3.92968693]
[1768292261825,0.66599819,140.61,140.57,3.92968693]
[1768292262018,3.9101615,140.61,140.57,3.92968693]
[1768292262724,11.02207332,140.61,140.57,0.68552362]
[1768292262905,11.02207332,140.61,140.57,3.92968693]
[1768292263730,11.02207332,140.61,140.57,0.68552362]
[1768292266238,11.02207332,140.61,140.57,3.92968693]
[1768292267934,0.34720624,140.6,140.57,3.92968693]
[1768292268133,11.02207332,140.61,140.57,3.92968693]
[1768292268521,7.11191182,140.61,140.58,0.68552362]
[1768292270830,11.02167998,140.62,140.58,0.68552362]
[1768292272240,7.77751667,140.62,140.58,0.68552362]
[1768292272737,11.02167998,140.62,140.58,3.92968693]
[1768292275639,7.77751667,140.62,140.58,3.92968693]
[1768292275840,11.02167998,140.62,140.58,3.92968693]
[1768292276436,11.02167998,140.62,140.58,0.68552362]
[1768292276739,11.02167998,140.62,140.58,3.92968693]
[1768292277039,11.02167998,140.62,140.58,0.68552362]
[1768292277833,7.77751667,140.62,140.58,0.68552362]
[1768292278034,11.02167998,140.62,140.58,0.68552362]
[1768292278536,3.24416331,140.61,140.58,0.68552362]
[1768292278841,3.59136955,140.61,140.58,0.68552362]
[1768292280840,10.7035704,140.61,140.58,0.68552362]
[1768292281941,0.66281027,140.6,140.56,3.92968693]
[1768292282144,11.02236235,140.61,140.57,0.68552362]
[1768292283047,7.77819904,140.61,140.57,0.68552362]
[1768292283233,11.02236235,140.61,140.57,0.68552362]
[1768292284847,0.35036228,140.58,140.54,11.03748877]
[1768292286947,0.35036228,140.58,140.55,3.24416331]
[1768292287747,0.70974299,140.59,140.55,3.92211657]
[1768292288249,10.35696129,140.6,140.56,3.92211657]
[1768292288430,7.11187335,140.61,140.58,0.67795326]
[1768292288748,11.06542743,140.62,140.58,0.67795326]
[1768292289250,3.24416331,140.61,140.58,0.67795326]
[1768292291951,11.06542743,140.62,140.58,0.67795326]
[1768292292648,0.70974299,140.62,140.59,0.67795326]
[1768292293254,3.9539063,140.62,140.59,0.67795326]
[1768292296551,11.06528344,140.62,140.59,0.67795326]
[1768292296951,3.24416331,140.6,140.57,0.65602826]
[1768292297153,3.24416331,140.59,140.57,0.65602826]
[1768292297537,0.66994083,140.6,140.57,0.65602826]
[1768292297751,3.91410414,140.6,140.57,0.65602826]
[1768292300056,0.66994083,140.6,140.57,0.65602826]
[1768292303061,0.34330303,140.59,140.57,0.65602826]
[1768292303269,0.34330303,140.59,140.55,13.63602826]
[1768292304571,0.34330303,140.59,140.56,0.65602826]
[1768292305164,0.66667445,140.58,140.54,22.16961148]
[1768292305758,0.66667445,140.58,140.54,20.09524616]
[1768292306070,0.63667446,140.58,140.54,22.16961148]
[1768292306271,7.11291496,140.59,140.55,0.65602826]
[1768292306961,2.07436532,140.59,140.55,0.65602826]
[1768292307879,2.74430615,140.59,140.55,0.65602826]
[1768292308049,9.85731944,140.59,140.55,0.65602826]
[1768292308371,0.31360304,140.58,140.55,0.65602826]
[1768292308770,0.31360304,140.58,140.54,22.16961148]
[1768292308978,0.31360304,140.58,140.54,22.82563974]
[1768292309145,0.66637745,140.57,140.54,0.65602826]
[1768292309472,0.66637745,140.57,140.48,17.2464355]
[1768292309473,2.07436532,140.55,140.52,0.65602826]
[1768292309680,2.73725031,140.55,140.51,0.65602826]
[1768292310244,2.73725031,140.55,140.52,0.65602826]
[1768292310448,24.89700344,140.58,140.53,0.65602826]
[1768292310449,0.66994083,140.57,140.53,0.65602826]
[1768292310660,2.07436532,140.56,140.53,0.65602826]
[1768292311873,2.38796836,140.56,140.53,0.65602826]
[1768292312186,2.74074277,140.55,140.52,0.65602826]
[1768292313484,0.31713078,140.54,140.5,0.65602826]
[1768292313773,2.07436532,140.53,140.5,0.65602826]
[1768292314072,2.07436532,140.54,140.5,0.65602826]
[1768292319879,7.78499877,140.55,140.5,0.65602826]
[1768292319880,2.07436532,140.55,140.51,0.72075307]
[1768292321984,2.37135809,140.55,140.51,0.72075307]
[1768292324581,2.07436532,140.54,140.51,0.72075307]
[1768292325976,2.07436532,140.55,140.51,0.72075307]
[1768292327882,2.07436532,140.54,140.51,0.72075307]
[1768292328684,2.07436532,140.55,140.51,0.72075307]
[1768292328883,2.07436532,140.54,140.51,0.72075307]
[1768292329192,2.07436532,140.55,140.51,0.72075307]
[1768292332985,9.18967078,140.55,140.51,0.72075307]
[1768292333984,0.68671888,140.56,140.51,0.72075307]
[1768292333985,2.07436532,140.54,140.51,0.72075307]
[1768292334206,2.07436532,140.55,140.51,0.72075307]
[1768292336277,0.29699277,140.54,140.5,9.91253791]
[1768292336487,2.07436532,140.55,140.51,0.72075307]
[1768292337493,0.68282162,140.54,140.51,0.72075307]
[1768292338691,2.75718694,140.54,140.5,0.72075307]
[1768292340179,2.07436532,140.54,140.5,0.72075307]
[1768292342586,2.37135809,140.54,140.5,0.72075307]
[1768292343292,0.26699278,140.54,140.51,0.72075307]
[1768292343671,2.07436532,140.55,140.51,0.72075307]
[1768292345277,2.73597558,140.55,140.51,0.72075307]
[1768292345975,0.26215032,140.54,140.51,0.72075307]
[1768292346376,2.07436532,140.55,140.51,0.72075307]
[1768292348002,2.73597558,140.55,140.51,0.72075307]
[1768292348899,9.85040603,140.56,140.52,0.69241235]
[1768292350310,2.73597558,140.56,140.52,0.69241235]
[1768292350874,2.07436532,140.56,140.53,0.69241235]
[1768292351080,9.85005702,140.57,140.53,0.69241235]
[1768292351480,0.66161026,140.59,140.55,0.69241235]
[1768292351798,0.66161026,140.6,140.57,0.69241235]
[1768292353501,2.73597558,140.6,140.57,0.69241235]
[1768292354406,2.73597558,140.6,140.56,0.71180785]
[1768292354590,2.33681564,140.59,140.56,0.71180785]
[1768292358415,2.07436532,140.6,140.57,0.71180785]
[1768292358714,0.7052533,140.59,140.56,0.71180785]
[1768292359216,2.77961862,140.59,140.56,0.71180785]
[1768292360206,0.7052533,140.59,140.56,0.71180785]
[1768292360397,2.77961862,140.59,140.56,0.71180785]
[1768292361996,0.21924371,140.58,140.55,20.80653469]
[1768292362312,0.21924371,140.58,140.54,0.71180785]
[1768292362313,0.70039321,140.57,140.54,0.71180785]
[1768292362685,2.77475853,140.57,140.54,0.71180785]
[1768292362888,0.70039321,140.57,140.54,0.71180785]
[1768292367814,7.11306005,140.59,140.55,0.71180785]
[1768292368109,3.24195176,140.58,140.54,7.8270471]
[1768292368317,3.24195176,140.58,140.54,0.71180785]
[1768292368318,3.95216384,140.58,140.54,0.71180785]
[1768292369120,3.45628628,140.57,140.54,0.71180785]
[1768292369900,3.45628628,140.57,140.51,0.71180785]
[1768292369901,3.46119547,140.55,140.51,0.71180785]
[1768292370101,3.40119544,140.55,140.51,0.71180785]
[1768292371397,3.40119544,140.55,140.51,7.82861896]
[1768292371599,3.40119544,140.55,140.52,0.71180785]
[1768292372608,0.15924368,140.55,140.52,0.71180785]
[1768292372807,3.40119544,140.55,140.52,0.71180785]
[1768292373825,0.71021208,140.57,140.53,0.71180785]
[1768292374003,0.15493449,140.57,140.54,0.71180785]
[1768292374415,3.24195176,140.58,140.54,0.71180785]
[1768292374605,3.95216384,140.58,140.54,0.71180785]
[1768292374832,3.24195176,140.57,140.54,0.71180785]
[1768292375122,3.39688625,140.57,140.54,0.71180785]
[1768292376714,3.24195176,140.56,140.54,0.71180785]
[1768292379027,3.24195176,140.56,140.53,20.09571119]
[1768292379237,3.24195176,140.56,140.53,13.69074687]
[1768292379923,0.15493449,140.57,140.53,13.69074687]
[1768292380121,3.39688625,140.57,140.53,13.69074687]
[1768292380325,3.89546769,140.56,140.52,0.71074687]
[1768292383113,0.21106368,140.57,140.53,0.71074687]
[1768292383313,3.45301544,140.57,140.53,0.71074687]
[1768292383537,0.21106368,140.57,140.54,0.71074687]
[1768292384930,0.65351593,140.59,140.55,0.71074687]
[1768292385130,3.89546769,140.59,140.56,0.71074687]
[1768292385331,0.65351593,140.59,140.56,0.71074687]
[1768292385712,3.89546769,140.59,140.54,23.33722764]
[1768292386034,3.89546769,140.59,140.55,0.71074687]
[1768292389240,3.24195176,140.58,140.55,0.71074687]
[1768292389938,3.45301544,140.58,140.54,13.69074687]
[1768292390141,0.21544395,140.56,140.54,12.98]
[1768292390433,3.89546769,140.57,140.54,13.69074687]
[1768292391638,3.45301544,140.58,140.55,0.71074687]
[1768292392844,3.89546769,140.59,140.55,7.82556362]
[1768292393027,3.89546769,140.59,140.56,0.71074687]
[1768292394340,11.00838457,140.59,140.56,0.71074687]
[1768292394545,11.00838457,140.59,140.55,0.71074687]
[1768292396040,0.21106368,140.58,140.55,0.71074687]
[1768292396220,0.21106368,140.58,140.54,24.04796609]
[1768292397037,0.21106368,140.58,140.54,20.80601433]
[1768292398928,0.21544395,140.56,140.54,12.98]
[1768292399136,0.18544393,140.56,140.52,0.71074687]
[1768292399332,0.18544393,140.56,140.52,13.69074687]
[1768292399534,0.18544393,140.56,140.52,20.80684505]
[1768292400543,10.3549579,140.59,140.54,11.06800333]
[1768292400949,3.24195176,140.58,140.54,0.71074687]
[1768292401151,3.89546769,140.58,140.54,0.71074687]
[1768292401850,0.65351593,140.58,140.54,0.71074687]
[1768292402149,3.89546769,140.58,140.54,0.71074687]
[1768292402929,0.65351593,140.58,140.54,7.82603372]
[1768292403246,0.65351593,140.58,140.54,7.11528685]
[1768292403436,0.65351593,140.58,140.54,7.82603372]
[1768292403635,0.65351593,140.58,140.54,11.06798548]
[1768292403851,0.65351593,140.59,140.55,0.71074687]
[1768292404035,0.65351593,140.6,140.56,0.71074687]
[1768292404226,3.89546769,140.6,140.56,0.71074687]
[1768292404427,0.64879441,140.58,140.54,7.82603372]
[1768292404628,0.64879441,140.58,140.55,12.98]
[1768292404829,0.18603796,140.57,140.53,16.94185561]
[1768292405551,0.18603796,140.57,140.53,24.05744824]
[1768292409055,0.18603796,140.57,140.53,16.94185561]
[1768292410253,0.18603796,140.57,140.53,24.05774115]
[1768292411054,0.18603796,140.57,140.54,3.96185561]
[1768292412052,0.18603796,140.57,140.54,0.71990385]
[1768292413543,0.15603796,140.57,140.54,0.71990385]
[1768292419951,0.16091925,140.55,140.52,13.65343975]
[1768292420155,0.16091925,140.55,140.52,16.89539151]
[1768292420658,0.67932785,140.56,140.52,16.89539151]
[1768292420836,0.67932785,140.56,140.52,24.01148322]
[1768292422253,0.67932785,140.56,140.53,0.67343975]
[1768292422451,0.67379567,140.54,140.51,0.67343975]
[1768292422641,0.64379566,140.54,140.51,0.67343975]
[1768292423060,0.64379566,140.54,140.51,3.91539151]
[1768292423645,10.35665694,140.56,140.52,0.67343975]
[1768292423850,3.24195176,140.57,140.53,3.91539151]
[1768292424052,23.33583347,140.58,140.54,0.67343975]
[1768292424360,23.33583347,140.58,140.53,3.91539151]
[1768292424569,0.67671154,140.57,140.53,3.91539151]
[1768292425456,0.67671154,140.57,140.53,2.74837032]
[1768292425858,0.099,140.56,140.52,22.84439194]
[1768292426041,2.17393057,140.56,140.52,13.65343975]
[1768292426447,0.67093442,140.55,140.52,13.65343975]
[1768292426640,2.75164211,140.56,140.52,13.65343975]
[1768292427078,2.75164211,140.56,140.52,0.67343975]
[1768292428184,0.67671154,140.56,140.52,0.67343975]
[1768292428474,0.67671154,140.56,140.52,7.78986123]
[1768292428975,2.75164211,140.56,140.52,7.78986123]
[1768292429467,9.86513035,140.58,140.54,0.67343975]
[1768292429656,2.75164211,140.58,140.54,0.67343975]
[1768292430564,0.67671154,140.6,140.55,0.67343975]
[1768292430770,2.75164211,140.6,140.56,0.67343975]
[1768292432064,0.67671154,140.6,140.57,0.67343975]
[1768292434280,2.17393057,140.61,140.58,0.67343975]
[1768292434572,0.099,140.61,140.58,1e-08]
[1768292434769,0.71094491,140.6,140.57,7.1138683]
[1768292434968,0.71094491,140.59,140.56,20.0942477]
[1768292435167,0.71094491,140.59,140.56,22.16917827]
[1768292436784,0.71094491,140.59,140.56,22.86939558]
[1768292438178,103.41094491,140.62,140.58,0.70021731]
[1768292438475,105.48587548,140.62,140.58,0.70021731]
[1768292438857,0.71094491,140.61,140.58,0.70021731]
[1768292439255,0.71094491,140.61,140.58,2.77514788]
[1768292440185,0.71094491,140.61,140.58,7.813209]
[1768292446194,0.71094491,140.62,140.59,0.70021731]
[1768292446401,2.78587548,140.62,140.59,0.70021731]
[1768292448985,9.28563307,140.64,140.58,0.70021731]
[1768292448986,2.78587548,140.61,140.58,0.70021731]
[1768292449170,0.71094491,140.61,140.58,0.70021731]
[1768292450277,0.71094491,140.61,140.58,2.77514788]
[1768292450580,0.71094491,140.61,140.58,0.70021731]
[1768292451583,2.78587548,140.63,140.59,0.70021731]
[1768292452674,0.71094491,140.62,140.59,0.70021731]
[1768292455879,0.71094491,140.61,140.57,2.77514788]
[1768292456090,2.07493057,140.6,140.57,0.70021731]
[1768292456384,2.78587548,140.6,140.57,0.70021731]
[1768292459294,0.71094491,140.6,140.57,0.70021731]
[1768292459467,2.78587548,140.6,140.57,0.70021731]
[1768292461492,2.78587548,140.61,140.57,0.70021731]
[1768292462194,0.71094491,140.6,140.57,0.70021731]
[1768292466668,0.677127,140.58,140.56,12.98]
[1768292467075,2.75205757,140.59,140.56,0.65797279]
[1768292468093,2.75205757,140.59,140.56,7.77228773]
[1768292469280,0.677127,140.61,140.58,0.65797279]
[1768292469473,0.677127,140.62,140.59,0.65797279]
[1768292469793,0.677127,140.63,140.6,0.65797279]
[1768292473302,0.677127,140.63,140.59,7.77058655]
[1768292474800,0.677127,140.63,140.59,9.84551712]
[1768292477788,0.677127,140.63,140.59,7.77058655]
[1768292478101,0.677127,140.63,140.6,0.6608588]
[1768292478494,0.677127,140.63,140.59,7.77347256]
[1768292478693,0.677127,140.63,140.6,0.6608588]
[1768292479700,2.75205757,140.63,140.6,0.6608588]
[1768292482204,2.07493057,140.63,140.6,0.6608588]
[1768292482703,0.7594982,140.64,140.6,0.6608588]
[1768292482901,2.07493057,140.63,140.6,0.6608588]
[1768292483205,2.73442877,140.63,140.6,0.6608588]
[1768292483895,2.73442877,140.63,140.6,0.6008588]
[1768292484321,2.83442877,140.64,140.6,7.71299617]
[1768292484906,2.83442877,140.64,140.6,0.6008588]
[1768292485408,2.07493057,140.63,140.6,0.6008588]
[1768292485807,2.73442877,140.63,140.6,0.6008588]
[1768292487312,3.89889571,140.63,140.6,0.6008588]
[1768292488211,3.23939751,140.63,140.6,0.6008588]
[1768292489011,11.10926608,140.64,140.6,0.6008588]
[1768292489315,3.23939751,140.63,140.6,0.6008588]
[1768292490799,0.1,140.64,140.61,0.6608588]
[1768292490998,3.33939751,140.64,140.61,0.6608588]
[1768292491414,3.99889571,140.64,140.61,0.6608588]
[1768292491715,0.1,140.64,140.61,0.6608588]
[1768292491914,3.33939751,140.64,140.61,0.6608588]
[1768292492118,3.99889571,140.64,140.61,0.6608588]
[1768292492423,0.1,140.64,140.61,0.6608588]
[1768292492802,0.1,140.64,140.62,0.6608588]
[1768292499726,0.1,140.64,140.63,0.68242621]
[1768292509827,17.19216721,140.67,140.64,0.68242621]
[1768292510529,17.88115076,140.67,140.64,0.68242621]
[1768292513824,0.68898355,140.65,140.62,0.68242621]
[1768292514035,0.68898355,140.65,140.61,7.79396991]
[1768292514036,0.68898355,140.64,140.61,7.79396991]
[1768292515035,3.92838106,140.65,140.62,0.68242621]
[1768292515618,3.92838106,140.66,140.63,0.68242621]
[1768292515821,21.12054827,140.67,140.63,0.68242621]
[1768292516027,17.19216721,140.67,140.63,0.68242621]
[1768292517338,17.19216721,140.67,140.64,7.79277888]
[1768292518235,17.19216721,140.67,140.65,0.68242621]
[1768292518536,20.43156472,140.67,140.65,0.62242621]
[1768292519833,21.12054827,140.67,140.62,24.88977384]
[1768292520532,21.12054827,140.67,140.63,0.68242621]
[1768292520733,21.12054827,140.67,140.64,7.79277888]
[1768292521317,21.12054827,140.67,140.64,0.68242621]
[1768292522440,3.23939751,140.66,140.64,0.68242621]
[1768292524539,3.95864201,140.66,140.63,0.65703272]
[1768292524924,3.23939751,140.65,140.63,0.65703272]
[1768292526031,3.23939751,140.65,140.63,7.76772405]
[1768292526237,3.95864201,140.66,140.63,7.76772405]
[1768292527726,3.95864201,140.66,140.63,0.65703272]
[1768292527940,0.7192445,140.65,140.62,7.76824013]
[1768292528333,3.95864201,140.65,140.62,7.76824013]
[1768292528734,0.7192445,140.65,140.62,7.76824013]
[1768292530148,3.95864201,140.66,140.63,0.65703272]
[1768292530335,3.23939751,140.65,140.63,0.65703272]
[1768292534434,3.93500177,140.64,140.61,13.66795651]
[1768292534645,3.23939751,140.63,140.61,0.68795651]
[1768292535149,0.69560426,140.64,140.61,0.68795651]
[1768292535340,3.93500177,140.64,140.61,0.68795651]
[1768292536740,0.69560426,140.63,140.6,0.68795651]
[1768292536943,3.23939751,140.64,140.59,7.11288142]
[1768292536944,3.93500177,140.61,140.59,7.11288142]
[1768292537160,10.34984509,140.64,140.59,0.68795651]
[1768292537451,3.23939751,140.62,140.59,0.68795651]
[1768292538652,3.23939751,140.61,140.59,0.68795651]
[1768292541167,3.23939751,140.61,140.59,7.80081357]
[1768292541332,3.93500177,140.62,140.59,7.80081357]
[1768292542460,3.93500177,140.62,140.59,0.68795651]
[1768292543267,3.23939751,140.61,140.59,0.68795651]
[1768292543636,3.93500177,140.62,140.59,7.80068444]
[1768292544561,3.23939751,140.62,140.6,0.68795651]
[1768292545250,3.93500177,140.63,140.6,0.68795651]
[1768292546162,11.04546602,140.64,140.6,0.68795651]
[1768292546343,3.23939751,140.63,140.6,0.68795651]
[1768292546543,11.04546602,140.64,140.6,0.68795651]
[1768292547035,3.93500177,140.64,140.61,0.68795651]
[1768292547349,2.76859662,140.64,140.61,0.68795651]
[1768292547848,2.76859662,140.63,140.6,0.68795651]
[1768292549265,2.07299236,140.62,140.6,0.68795651]
[1768292550267,2.76859662,140.63,140.6,0.68795651]
[1768292550572,0.69560426,140.63,140.6,7.8002502]
[1768292550788,2.76859662,140.63,140.6,0.68795651]
[1768292551073,2.76859662,140.61,140.58,0.68795651]
[1768292551277,2.07299236,140.6,140.58,0.68795651]
[1768292551450,0.69560426,140.61,140.58,0.68795651]
[1768292551651,2.07299236,140.6,140.58,0.68795651]
[1768292552457,2.76859662,140.6,140.57,0.68795651]
[1768292552767,2.76859662,140.6,140.57,7.8017582]
[1768292555747,2.76859662,140.6,140.57,0.68795651]
[1768292556465,2.75883148,140.59,140.56,0.7138602]
[1768292558165,2.07299236,140.58,140.56,0.7138602]
[1768292558364,2.04299237,140.58,140.56,0.7138602]
[1768292558570,2.72883149,140.58,140.56,0.7138602]
[1768292558752,9.18556234,140.6,140.53,30.76952781]
[1768292558753,0.68583912,140.56,140.54,7.11541198]
[1768292559072,0.65583913,140.56,140.54,7.11541198]
[1768292559280,2.07299236,140.57,140.54,7.82927218]
[1768292559447,9.18556234,140.6,140.55,0.7138602]
[1768292559964,2.07299236,140.58,140.55,0.7138602]
[1768292560168,2.07299236,140.57,140.55,7.82860889]
[1768292562675,0.68583912,140.6,140.56,0.7138602]
[1768292562881,2.07299236,140.59,140.56,0.7138602]
[1768292564379,2.75883148,140.6,140.57,0.7138602]
[1768292566065,2.07299236,140.6,140.57,0.7138602]
[1768292566266,2.75883148,140.61,140.57,0.7138602]
[1768292567271,2.07299236,140.6,140.57,0.7138602]
[1768292568281,2.75883148,140.6,140.57,0.7138602]
[1768292571085,2.75883148,140.6,140.57,7.82773714]
[1768292572484,2.75883148,140.6,140.57,0.7138602]
[1768292573483,2.75883148,140.6,140.56,7.82810432]
[1768292573784,2.75883148,140.6,140.57,0.7138602]
[1768292575076,2.75883148,140.6,140.57,7.82775127]
[1768292575482,2.75883148,140.61,140.58,0.7138602]
[1768292575861,0.68583912,140.6,140.57,7.82775127]
[1768292578664,0.68583912,140.61,140.58,0.7138602]
[1768292578864,2.75883148,140.61,140.58,0.7138602]
[1768292580591,2.75883148,140.62,140.59,0.7138602]
[1768292582374,7.11085828,140.63,140.59,0.7138602]
[1768292582375,2.75883148,140.63,140.6,0.7138602]
[1768292583069,9.86932703,140.64,140.6,0.7138602]
[1768292583670,0.68583912,140.64,140.6,0.7138602]
[1768292583867,2.75883148,140.64,140.6,0.7138602]
[1768292584416,0.68583912,140.65,140.62,0.7138602]
[1768292584778,0.68583912,140.65,140.61,2.07299236]
[1768292585485,0.65620335,140.64,140.6,9.18532099]
[1768292586679,0.65620335,140.64,140.61,0.71353376]
[1768292588002,0.65620335,140.65,140.62,0.71353376]
[1768292590289,0.65620335,140.65,140.62,2.78652612]
[1768292590695,0.65620335,140.65,140.62,0.71353376]